bitfinex/quotes_ETHUSD_20260131
["timestamp","ask_amount","ask_price","bid_price","bid_amount"]
[1769901230827,1.74375793,2424.9,2423.6,12.70494904]
[1769901231025,0.88752344,2424.8,2423.8,12.70494904]
[1769901231329,0.71275806,2424.9,2423.8,12.70494904]
[1769901231651,1.89591434,2425.1,2424.0,12.70494904]
[1769901231825,0.865,2425.1,2424.0,12.70494904]
[1769901232218,1.89590838,2425.1,2424.0,12.70494904]
[1769901232420,10.71369333,2425.1,2423.7,13.73642983]
[1769901232626,0.88644516,2425.0,2423.7,13.73642983]
[1769901232838,0.88644516,2424.9,2423.7,13.73642983]
[1769901233146,0.88644516,2424.8,2423.7,13.72642983]
[1769901233322,1.03097034,2424.9,2423.7,13.72642983]
[1769901233520,0.51548517,2424.8,2423.7,13.72642983]
[1769901235237,1.03105538,2424.7,2423.7,13.72642983]
[1769901239047,0.51548517,2424.8,2423.7,13.72642983]
[1769901239258,1.03099125,2424.9,2423.7,13.72642983]
[1769901239457,1.03199125,2424.9,2423.7,13.72642983]
[1769901241135,8.81879999,2424.9,2423.7,13.72642983]
[1769901241752,8.81879999,2424.9,2423.7,1.02148079]
[1769901241947,8.81879999,2424.9,2423.1,12.70494904]
[1769901241948,8.83437583,2424.5,2423.1,12.70494904]
[1769901242153,8.81779999,2424.3,2423.1,12.70494904]
[1769901242457,8.81779999,2424.3,2423.0,1.03175728]
[1769901242625,8.83437583,2424.3,2423.0,1.03175728]
[1769901242825,8.92019999,2424.0,2422.8,12.70494904]
[1769901243029,1.03143823,2423.8,2422.8,13.73680637]
[1769901246060,5.00676668,2424.2,2422.8,13.73680637]
[1769901246061,3.0241451,2424.4,2422.8,13.73680637]
[1769901246257,1.03121563,2424.4,2423.0,12.72152488]
[1769901246458,1.03121563,2424.4,2423.2,12.70494904]
[1769901246758,1.03101286,2424.8,2423.2,12.70494904]
[1769901247129,1.03101286,2424.8,2423.4,13.8461721]
[1769901247328,0.6021062,2424.7,2423.6,13.8461721]
[1769901249269,1.91778971,2424.6,2423.5,1.03155814]
[1769901249472,1.03109791,2424.6,2423.6,14.8776906]
[1769901249638,0.57575958,2424.5,2423.6,14.8776906]
[1769901250367,1.03109791,2424.6,2423.6,14.8776906]
[1769901250951,1.03209791,2424.6,2423.6,14.8776906]
[1769901251742,9.8498979,2424.6,2423.4,1.03268381]
[1769901251950,9.86647374,2424.6,2423.4,1.03268381]
[1769901252264,1.46095474,2424.5,2423.4,1.03268381]
[1769901252864,1.36095474,2424.5,2423.5,1.03156132]
[1769901253077,1.37753058,2424.5,2423.4,1.03270054]
[1769901253285,1.03118297,2424.4,2423.4,1.03270054]
[1769901253442,9.8655588,2424.4,2423.4,0.0011]
[1769901253759,10.37555438,2424.3,2423.4,0.0011]
[1769901254067,9.48772037,2424.3,2423.4,0.0011]
[1769901254243,0.88817115,2424.2,2423.4,0.0011]
[1769901254446,9.48772037,2424.3,2423.4,0.0011]
[1769901254641,1.94172044,2424.2,2423.4,0.0011]
[1769901254842,0.11897584,2423.7,2422.7,0.0011]
[1769901255070,0.90474836,2423.6,2422.7,0.0011]
[1769901255375,1.03160848,2423.4,2422.7,0.0011]
[1769901255978,1.04818432,2423.4,2422.7,0.0011]
[1769901256346,9.68062199,2423.3,2422.2,0.0011]
[1769901256546,0.1024,2423.2,2422.2,0.0011]
[1769901257099,1.38411941,2423.3,2422.2,1.03318353]
[1769901257285,0.24157279,2423.2,2422.3,1.54825373]
[1769901257486,1.0317362,2423.1,2422.3,0.5161786]
[1769901257761,1.0317362,2423.1,2422.3,1.54821638]
[1769901257945,1.27329812,2423.2,2422.3,15.39438848]
[1769901258150,2.41579957,2423.3,2422.5,13.8461721]
[1769901259162,0.865,2423.3,2422.5,13.8461721]
[1769901259351,1.89665681,2423.3,2422.5,13.8461721]
[1769901259551,0.865,2423.3,2422.6,14.87812124]
[1769901260669,1.89666753,2423.3,2422.6,13.8461721]
[1769901260845,2.49898745,2423.3,2422.6,13.8461721]
[1769901261971,2.49898745,2423.3,2422.6,14.87809339]
[1769901262172,0.865,2423.3,2422.6,14.87809339]
[1769901262677,1.89665123,2423.3,2422.6,14.87809339]
[1769901264079,1.89665123,2423.3,2422.8,0.0011]
[1769901264455,1.89665123,2423.3,2422.6,14.11934339]
[1769901265375,1.89665123,2423.3,2422.6,13.0874221]
[1769901265588,2.49896062,2423.3,2422.6,14.11937012]
[1769901266074,0.865,2423.3,2422.6,14.11937012]
[1769901266780,1.03153811,2423.6,2422.6,14.11937012]
[1769901267483,1.89638025,2424.0,2422.6,14.98437012]
[1769901267682,0.865,2424.0,2422.8,13.8461721]
[1769901267882,1.89637421,2424.0,2422.8,13.8461721]
[1769901268086,1.89637421,2424.0,2423.0,13.8461721]
[1769901270990,1.89637421,2424.0,2423.0,14.87794903]
[1769901275889,0.001,2423.8,2423.0,14.87794903]
[1769901276190,0.001,2423.8,2423.0,15.79436457]
[1769901281599,0.001,2423.8,2423.0,16.89923638]
[1769901281798,0.001,2423.8,2423.0,15.79436457]
[1769901281997,0.001,2423.8,2423.0,16.89923638]
[1769901282682,0.001,2423.8,2423.0,15.79436457]
[1769901285307,0.001,2423.8,2423.2,12.88992391]
[1769901285707,0.01657584,2425.4,2423.3,14.36279819]
[1769901285708,1.03120546,2424.4,2423.3,14.36279819]
[1769901286302,1.03120546,2424.4,2423.5,12.88992391]
[1769901287222,1.03126804,2424.2,2423.2,12.88992391]
[1769901287384,0.001,2423.6,2423.2,13.92161605]
[1769901287720,0.001,2423.6,2423.2,12.88992391]
[1769901289791,0.001,2423.6,2423.2,13.92161684]
[1769901290194,0.001,2423.6,2423.2,12.88992391]
[1769901298621,0.001,2423.6,2423.4,0.0011]
[1769901302019,1.03135313,2424.0,2423.4,12.89102391]
[1769901302188,0.66393082,2423.9,2423.4,12.89102391]
[1769901302596,1.03143823,2423.8,2423.4,0.0011]
[1769901304925,0.66393082,2423.9,2423.4,12.89102391]
[1769901305126,1.9728343,2424.2,2423.6,12.88992391]
[1769901305127,0.865,2424.2,2423.6,12.88992391]
[1769901305827,0.001,2424.6,2423.8,1.48018473]
[1769901306124,11.45700413,2424.9,2423.5,1.28910239]
[1769901306325,12.82664272,2424.7,2423.5,12.88992391]
[1769901306496,1.03109791,2424.6,2423.5,12.88992391]
[1769901306693,0.89023631,2424.5,2423.5,12.88992391]
[1769901306924,13.71687903,2424.4,2423.4,0.0011]
[1769901307242,13.43944066,2424.0,2423.1,0.0011]
[1769901307401,0.89023631,2423.9,2423.1,13.26731671]
[1769901307724,0.89042513,2423.8,2423.1,13.26731671]
[1769901307927,1.51193698,2424.1,2423.1,13.26731671]
[1769901308107,0.89041663,2424.0,2423.1,13.26731671]
[1769901308308,1.13065199,2423.9,2423.1,14.29905188]
[1769901308509,0.40410268,2424.1,2423.4,1.03159679]
[1769901308719,0.89041413,2424.0,2423.2,17.39289021]
[1769901308910,1.43544137,2424.1,2423.2,17.39289021]
[1769901308911,1.43544137,2424.1,2423.3,1.84256838]
[1769901309111,0.89031737,2424.0,2423.3,1.84256838]
[1769901309306,1.43544137,2424.1,2423.3,1.84256838]
[1769901309307,0.40410268,2424.1,2423.3,1.84256838]
[1769901309523,0.865,2424.5,2423.3,15.10878509]
[1769901309698,0.865,2424.5,2423.4,13.26621671]
[1769901310134,1.03103481,2424.8,2423.6,13.26621671]
[1769901310331,1.54661944,2424.8,2423.8,13.26621671]
[1769901310827,0.001,2424.9,2423.8,1.8964048]
[1769901311128,0.001,2423.8,2423.7,14.29766502]
[1769901311423,0.001,2424.9,2423.8,1.0314352]
[1769901311621,0.88914079,2424.8,2423.8,1.0314352]
[1769901311928,0.001,2424.9,2423.8,1.0314352]
[1769901312112,0.88913016,2424.8,2423.8,1.03143223]
[1769901312308,0.88893046,2424.7,2423.8,1.03143779]
[1769901312627,1.03197034,2424.9,2423.7,14.29766389]
[1769901312830,1.51529952,2424.8,2423.6,1.03152185]
[1769901313125,0.88893092,2424.7,2423.6,1.03152185]
[1769901313308,0.88893092,2424.7,2423.7,1.03147144]
[1769901313699,0.88893092,2424.7,2423.4,13.26621671]
[1769901313700,14.32837158,2424.7,2423.4,13.26621671]
[1769901313906,13.4560165,2424.4,2423.3,0.0011]
[1769901314112,14.32837158,2424.3,2423.3,0.0011]
[1769901314318,0.88893092,2424.2,2423.3,0.0011]
[1769901314712,1.03131058,2424.1,2423.3,0.0011]
[1769901314934,1.03131058,2424.1,2423.3,1.84377289]
[1769901315133,1.03129671,2424.2,2423.3,1.84377289]
[1769901315747,1.03129671,2424.2,2423.3,0.0011]
[1769901315941,0.88907433,2424.1,2423.3,0.0011]
[1769901316130,13.43944066,2424.1,2423.3,0.0011]
[1769901316814,1.03135313,2424.0,2423.3,0.0011]
[1769901318838,1.03126804,2424.2,2423.3,0.0011]
[1769901319043,1.5302596,2424.2,2423.3,0.0011]
[1769901319537,14.96970026,2424.2,2423.3,0.0011]
[1769901319722,13.43944066,2424.0,2423.3,0.0011]
[1769901320040,1.54683544,2424.2,2423.3,0.0011]
[1769901320041,1.5302596,2424.2,2423.3,0.0011]
[1769901320223,1.65537292,2424.1,2423.3,0.0011]
[1769901320423,0.76611612,2424.1,2423.3,0.0011]
[1769901320838,1.03135313,2424.0,2423.3,0.0011]
[1769901321028,1.79742994,2424.1,2423.3,0.0011]
[1769901321236,0.64216206,2424.0,2423.3,0.0011]
[1769901322151,0.64216206,2424.0,2423.1,0.0011]
[1769901322357,0.88936105,2423.9,2423.1,0.0011]
[1769901322529,0.64216206,2424.0,2423.1,0.0011]
[1769901322930,1.03139568,2423.9,2423.1,0.0011]
[1769901323128,0.57991405,2423.8,2423.1,0.0011]
[1769901323725,0.57991405,2423.8,2423.3,0.0011]
[1769901323726,14.01935471,2423.8,2423.3,0.0011]
[1769901323931,14.02035471,2423.8,2423.3,0.0011]
[1769901324155,14.32877595,2423.7,2423.0,0.0011]
[1769901324360,0.58091405,2423.8,2423.0,0.0011]
[1769901324361,13.43944066,2423.5,2423.0,0.0011]
[1769901324554,13.43944066,2423.5,2422.5,0.0011]
[1769901325061,1.92106852,2423.4,2422.5,0.0011]
[1769901325361,1.03160848,2423.4,2422.5,0.0011]
[1769901326854,13.4560165,2423.2,2422.5,0.0011]
[1769901327061,15.69053244,2423.1,2422.2,0.0011]
[1769901327234,1.03177878,2423.0,2422.2,0.0011]
[1769901327438,0.865,2422.9,2422.2,0.0011]
[1769901327689,14.30444066,2422.9,2422.2,0.0011]
[1769901327846,1.53527953,2422.8,2422.2,0.0011]
[1769901329041,0.865,2422.9,2422.2,13.26731671]
[1769901329361,0.865,2422.9,2422.4,13.26621671]
[1769901332047,4.12635565,2423.5,2422.4,14.29824891]
[1769901332247,5.20385279,2423.5,2422.6,13.26621671]
[1769901334067,5.20385279,2423.5,2422.7,1.03190655]
[1769901334539,5.20385279,2423.5,2422.6,14.29814285]
[1769901334739,5.20385279,2423.5,2422.6,13.26621671]
[1769901335774,5.20385279,2423.5,2422.8,0.0011]
[1769901335973,0.62354187,2423.4,2422.8,0.0011]
[1769901336148,1.03165105,2423.3,2422.8,0.0011]
[1769901338980,14.58337831,2423.3,2422.2,1.03321439]
[1769901339179,1.93501002,2423.2,2422.2,1.03321439]
[1769901339780,1.93501002,2423.2,2422.2,0.0011]
[1769901339985,13.53515142,2423.0,2422.2,0.0011]
[1769901340281,1.93501002,2423.2,2422.3,1.03204267]
[1769901340578,1.03165105,2423.3,2422.3,1.03204267]
[1769901341282,1.03165105,2423.3,2422.2,14.71143398]
[1769901341854,14.56680247,2423.3,2422.2,13.67934198]
[1769901342266,14.56680247,2423.3,2422.2,14.71146132]
[1769901342468,1.93169486,2423.2,2422.2,14.71146132]
[1769901343271,1.0317362,2423.1,2422.2,14.71146132]
[1769901344392,1.0317362,2423.1,2422.2,13.67934198]
[1769901347306,1.0317362,2423.1,2422.2,0.0011]
[1769901347519,1.0317362,2423.1,2421.9,0.0011]
[1769901347520,13.50477661,2422.6,2421.9,0.0011]
[1769901347677,13.48820077,2422.5,2421.3,14.0505971]
[1769901347974,1.34882008,2422.4,2421.3,16.01680894]
[1769901348171,0.865,2422.3,2421.3,16.01680894]
[1769901348672,14.37727694,2422.2,2421.2,0.0011]
[1769901348889,14.37733092,2422.1,2421.2,0.0011]
[1769901349204,13.48820077,2422.1,2421.2,0.0011]
[1769901349398,14.5204908,2421.8,2420.9,0.0011]
[1769901350071,1.34882008,2422.0,2420.9,13.01919404]
[1769901350278,1.03214096,2422.2,2420.9,13.01919404]
[1769901350598,0.865,2422.5,2420.9,13.01919404]
[1769901350794,16.36597084,2422.5,2420.9,13.01919404]
[1769901351105,2.93940127,2422.4,2421.1,13.01809404]
[1769901351306,0.865,2422.5,2421.1,13.89966988]
[1769901351493,0.865,2422.5,2421.3,13.03466988]
[1769901351808,1.03184829,2422.9,2421.5,13.01809404]
[1769901352784,4.83620456,2423.0,2421.7,13.01809404]
[1769901352785,1.74084695,2423.0,2421.7,13.01809404]
[1769901353604,1.74084695,2423.0,2421.9,13.01809404]
[1769901353982,4.12794635,2423.1,2421.9,13.01809404]
[1769901353983,0.001,2423.1,2421.9,13.01809404]
[1769901354381,1.03274775,2423.1,2421.9,13.01809404]
[1769901355007,0.001,2423.1,2421.9,13.01809404]
[1769901355186,4.12693532,2423.7,2422.2,13.01809404]
[1769901355187,0.001,2423.7,2422.2,13.01809404]
[1769901355505,1.59315864,2423.7,2422.4,13.01809404]
[1769901355921,0.56167727,2423.7,2422.6,13.01809404]
[1769901356206,0.001,2423.7,2422.6,13.01809404]
[1769901357225,1.03118958,2424.4,2422.8,13.01809404]
[1769901358011,17.61277332,2424.5,2423.0,13.01809404]
[1769901358213,17.61277332,2424.5,2422.9,1.03182137]
[1769901358214,2.17375052,2424.4,2423.1,14.42308558]
[1769901359181,4.12457255,2424.5,2423.1,14.42308558]
[1769901359380,1.03109791,2424.6,2423.1,14.42308558]
[1769901359986,1.03109791,2424.6,2423.3,13.01809404]
[1769901360511,0.001,2423.5,2423.3,13.01809404]
[1769901360712,1.03200007,2424.9,2423.5,13.01809404]
[1769901361110,1.03200007,2424.9,2423.4,1.32843451]
[1769901361111,13.48820077,2424.8,2423.4,1.32843451]
[1769901361422,0.01657584,2424.0,2422.7,1.03187114]
[1769901361592,0.01657584,2424.0,2422.6,13.01809404]
[1769901361593,13.50477661,2424.0,2422.6,13.01809404]
[1769901361789,13.50477661,2423.8,2422.3,13.01809404]
[1769901361992,13.50477661,2423.8,2422.7,1.03190653]
[1769901362220,1.03148079,2423.7,2422.4,1.03203434]
[1769901362420,1.86621806,2423.6,2422.4,3.26267465]
[1769901364036,13.50477661,2423.4,2421.5,4.12960265]
[1769901364189,1.03165105,2423.3,2421.5,13.01809404]
[1769901364392,0.865,2423.2,2421.5,13.01809404]
[1769901364931,0.865,2423.2,2421.7,13.01809404]
[1769901365136,0.865,2423.2,2421.9,13.01809404]
[1769901366198,1.0317362,2423.1,2422.0,1.03220478]
[1769901366803,0.865,2423.2,2422.0,14.05029882]
[1769901367023,1.89670485,2423.2,2422.0,14.05029882]
[1769901367834,5.99233176,2423.6,2422.0,14.05029882]
[1769901367835,2.89776435,2423.6,2422.0,14.05029882]
[1769901368142,17.84400835,2423.7,2422.3,1.03207695]
[1769901368292,13.71801937,2423.6,2422.3,1.03207695]
[1769901368500,13.71801937,2423.6,2422.3,14.8121605]
[1769901368796,4.12609341,2423.8,2422.4,15.67413038]
[1769901368797,1.37180194,2423.5,2422.4,15.67413038]
[1769901368999,1.03143823,2423.8,2422.4,15.67413038]
[1769901369929,0.865,2424.0,2422.4,15.67413038]
[1769901370129,4.14113169,2424.6,2422.4,15.67413038]
[1769901370130,1.03114044,2424.5,2422.8,13.78008355]
[1769901370425,1.03114044,2424.5,2422.7,1.03190655]
[1769901370426,0.5265324,2424.4,2423.0,13.78008355]
[1769901370927,14.24455177,2424.4,2423.0,13.78008355]
[1769901371433,0.5265324,2424.4,2423.0,13.78008355]
[1769901371734,1.03112266,2424.6,2423.0,13.78008355]
[1769901372093,4.12422445,2424.7,2423.2,13.78008355]
[1769901372323,4.12439165,2424.8,2423.2,13.78008355]
[1769901372928,13.73459521,2424.7,2423.1,1.0317362]
[1769901373227,0.001,2424.2,2423.2,0.5158681]
[1769901373798,13.71901937,2424.2,2423.1,1.0317362]
[1769901374441,13.71901937,2424.2,2423.0,4.12694482]
[1769901374442,1.03131058,2424.1,2423.0,4.12694482]
[1769901375225,1.03131058,2424.1,2422.9,1.46162536]
[1769901375226,14.74932995,2424.1,2422.9,1.03178821]
[1769901375526,15.6055766,2424.0,2422.9,1.03178821]
[1769901376098,15.6055766,2424.0,2422.2,5.01030204]
[1769901376099,13.71801937,2423.5,2422.2,0.0011]
[1769901376303,17.84384372,2423.8,2422.2,17.90963005]
[1769901376535,18.12439204,2423.8,2422.3,15.67426277]
[1769901377028,18.12439204,2423.8,2422.3,1.89417922]
[1769901377029,13.71801937,2423.7,2422.3,1.89417922]
[1769901377232,13.71801937,2423.7,2422.2,0.0011]
[1769901377233,13.71801937,2423.5,2422.2,0.0011]
[1769901378420,1.03160848,2423.4,2422.2,0.0011]
[1769901380410,14.74962785,2423.4,2422.2,0.0011]
[1769901381309,13.71801937,2423.2,2422.2,0.0011]
[1769901381516,13.71801937,2423.0,2422.2,0.0011]
[1769901381935,13.71801937,2423.0,2422.0,0.0011]
[1769901382153,13.71801937,2423.0,2421.3,1.47026047]
[1769901382154,13.73459521,2422.8,2421.3,1.47026047]
[1769901382336,1.03207695,2422.3,2421.2,4.13005126]
[1769901382536,15.61509632,2422.3,2421.3,1.79101348]
[1769901382852,2.4070246,2422.7,2421.3,13.78008355]
[1769901383058,14.7665027,2422.7,2421.2,1.03254584]
[1769901383226,15.61492686,2422.7,2421.2,14.81262939]
[1769901383422,1.97424305,2422.6,2421.4,13.78008355]
[1769901383618,1.89690749,2422.7,2421.4,13.78008355]
[1769901384629,4.12734556,2422.9,2421.5,14.81250147]
[1769901385019,17.84536493,2422.9,2421.6,0.0011]
[1769901385231,14.23393606,2422.8,2421.6,1.89542732]
[1769901385520,0.51591669,2422.8,2421.6,15.67551087]
[1769901385846,3.27022188,2423.1,2421.6,17.14577134]
[1769901386045,0.865,2423.1,2421.6,17.14577134]
[1769901386947,0.865,2423.1,2421.7,1.03233265]
[1769901387149,0.865,2423.1,2421.8,13.78008355]
[1769901387731,14.58301937,2423.1,2421.8,13.78008355]
[1769901388047,14.58301937,2423.1,2421.7,1.03233265]
[1769901388354,1.45830194,2423.0,2421.8,14.48579261]
[1769901388524,0.865,2423.1,2421.8,14.48579261]
[1769901389155,0.865,2423.1,2421.9,14.81233095]
[1769901389619,1.03155437,2423.6,2421.9,14.82890679]
[1769901389822,4.12598641,2423.7,2422.1,13.78008355]
[1769901389823,1.03150896,2423.7,2422.1,13.78008355]
[1769901390050,1.03146492,2423.8,2422.3,13.78008355]
[1769901390539,14.74948429,2423.8,2422.3,13.78008355]
[1769901391067,13.71801937,2423.5,2422.2,0.95094434]
[1769901391235,1.03160848,2423.4,2422.3,1.03207695]
[1769901391425,1.88760618,2423.3,2422.3,1.64320986]
[1769901392153,1.03160848,2423.4,2422.3,15.42329341]
[1769901392741,1.03160848,2423.4,2422.3,1.64320986]
[1769901392940,1.03160848,2423.4,2422.2,1.03210854]
[1769901392941,13.73459521,2423.3,2422.2,1.03210854]
[1769901393323,14.76628883,2423.2,2421.9,1.0322474]
[1769901395658,0.865,2423.1,2421.9,1.0322474]
[1769901395855,1.56312888,2423.0,2422.0,1.96471925]
[1769901397161,1.56412888,2423.0,2422.0,1.96471925]
[1769901397370,2.59593238,2423.0,2422.1,1.03216217]
[1769901398356,1.56412888,2423.0,2422.1,1.03216217]
[1769901398559,0.001,2423.0,2422.1,14.57207612]
[1769901399450,0.001,2423.0,2422.1,16.04233659]
[1769901399653,4.12544919,2424.0,2422.2,15.01017442]
[1769901399851,4.12544919,2424.0,2422.4,13.53991395]
[1769901399852,1.03135313,2424.0,2422.4,13.53991395]
[1769901400147,1.03135313,2424.0,2422.4,15.01017442]
[1769901400849,0.001,2424.2,2422.8,13.53991395]
[1769901401055,0.001,2424.2,2423.0,13.53991395]
[1769901401350,0.001,2424.2,2423.2,13.53991395]
[1769901402769,0.001,2424.2,2423.2,15.87517442]
[1769901403593,0.001,2424.2,2423.4,13.58339146]
[1769901404190,0.001,2424.9,2423.5,13.58339146]
[1769901404350,0.001,2424.9,2423.5,14.28910052]
[1769901404782,1.03197978,2424.9,2423.5,14.28910052]
[1769901405859,1.03197978,2424.9,2423.6,1.03152335]
[1769901406054,1.03197978,2424.9,2423.6,14.61491481]
[1769901406465,0.001,2424.9,2423.6,14.61491481]
[1769901406672,0.001,2424.9,2423.8,13.58339146]
[1769901407182,0.001,2424.9,2424.0,13.58339146]
[1769901407984,0.001,2424.9,2424.1,14.61470204]
[1769901408201,0.001,2424.9,2424.1,1.03131058]
[1769901408373,0.001,2424.9,2424.0,4.12540872]
[1769901408374,13.77387953,2424.9,2424.0,1.03131984]
[1769901408688,1.37738795,2424.8,2424.0,1.03131984]
[1769901409186,0.001,2424.7,2423.7,1.96471925]
[1769901409386,0.001,2424.7,2423.9,1.03139182]
[1769901409892,0.001,2424.7,2423.6,4.12608091]
[1769901410260,0.001,2424.7,2423.6,17.70947237]
[1769901410462,2.03172992,2424.7,2423.7,15.52806194]
[1769901410694,0.001,2424.7,2423.7,15.52806194]
[1769901411976,0.001,2424.7,2423.8,1.03143823]
[1769901412681,0.001,2424.7,2423.5,1.03153225]
[1769901412682,0.01657584,2424.6,2423.5,1.03153225]
[1769901412884,13.77287953,2424.5,2423.6,1.03150569]
[1769901413486,0.01657584,2424.4,2423.5,1.03153539]
[1769901413687,13.77287953,2424.4,2423.5,1.03153539]
[1769901413884,13.77287953,2424.4,2423.0,13.58339146]
[1769901413885,14.82068087,2424.3,2423.0,17.71042266]
[1769901414103,13.78945537,2424.1,2423.1,1.0317362]
[1769901414272,13.77287953,2424.1,2423.1,1.0317362]
[1769901414599,1.37728795,2424.0,2423.1,1.64231221]
[1769901414792,1.0312255,2424.3,2423.1,1.64231221]
[1769901415003,1.04780134,2424.3,2423.1,1.64231221]
[1769901415169,14.82068087,2424.3,2423.1,1.64231221]
[1769901416597,14.80410503,2424.3,2423.1,1.64231221]
[1769901416891,1.89290071,2424.2,2423.2,1.93527349]
[1769901418270,1.03131058,2424.1,2423.3,1.03165105]
[1769901418596,2.92419393,2424.2,2423.3,1.03165105]
[1769901419298,2.92419393,2424.2,2423.3,14.61504251]
[1769901419299,1.89290071,2424.2,2423.3,14.61504251]
[1769901419605,1.03115957,2424.5,2423.3,14.61504251]
[1769901420283,4.12441263,2424.6,2423.3,14.61504251]
[1769901420782,17.89729216,2424.6,2423.3,14.61504251]
[1769901420989,1.89293901,2424.5,2423.4,1.95243005]
[1769901421388,1.89393901,2424.5,2423.4,1.95243005]
[1769901421588,1.89393901,2424.5,2423.4,16.40082151]
[1769901421589,0.001,2424.5,2423.4,16.40082151]
[1769901421795,0.001,2424.5,2423.5,13.58339146]
[1769901422305,0.001,2424.5,2423.6,14.61491481]
[1769901422682,13.77387953,2424.5,2423.4,1.03157937]
[1769901422994,13.77287953,2424.3,2423.3,1.03273718]
[1769901423181,13.77287953,2424.3,2423.0,1.0328674]
[1769901423182,13.78945537,2424.1,2423.0,1.0328674]
[1769901423382,13.78945537,2424.1,2423.1,1.03173302]
[1769901424104,13.78945537,2424.1,2423.0,1.03285177]
[1769901424304,1.38060312,2424.0,2423.0,13.58449146]
[1769901424484,0.001,2424.5,2423.0,13.58449146]
[1769901424688,0.001,2424.5,2423.2,13.58339146]
[1769901425216,0.001,2424.5,2423.7,13.58339146]
[1769901425377,0.001,2424.5,2423.9,13.58339146]
[1769901425576,0.001,2424.5,2424.0,1.46816808]
[1769901425779,0.001,2424.9,2424.0,15.05155954]
[1769901425999,0.001,2424.9,2424.1,14.68168085]
[1769901426400,0.001,2424.9,2424.2,1.03126804]
[1769901426603,0.001,2424.9,2424.2,14.6146595]
[1769901426792,0.001,2424.9,2424.3,16.66548296]
[1769901427126,1.03161675,2425.8,2424.3,16.66548296]
[1769901427405,1.03159352,2425.8,2424.6,1.09828939]
[1769901428213,12.79866472,2425.6,2424.4,1.10008196]
[1769901428385,1.0307141,2425.6,2424.4,1.03118297]
[1769901428579,4.6379576,2425.7,2424.4,1.03118297]
[1769901428580,1.54603335,2425.7,2424.4,15.13562184]
[1769901428787,0.51537816,2425.7,2424.5,16.17750029]
[1769901428985,0.51537816,2425.7,2424.6,14.10443887]
[1769901429511,14.34467353,2425.7,2424.6,1.10008196]
[1769901429712,14.64712762,2425.6,2424.4,2.13126493]
[1769901429915,0.01657584,2425.5,2424.4,1.03118297]
[1769901430212,12.79866472,2425.3,2424.2,1.03124253]
[1769901430412,12.79866472,2425.3,2424.3,1.03121672]
[1769901430711,1.03084281,2425.2,2424.2,4.1250596]
[1769901430913,2.31236687,2425.2,2424.2,4.3818846]
[1769901431129,1.28152406,2425.2,2424.2,4.3818846]
[1769901431515,1.03074734,2425.5,2424.3,14.10443887]
[1769901431686,1.03074734,2425.5,2424.4,1.10008196]
[1769901432807,4.1227003,2425.6,2424.4,1.03118297]
[1769901433411,0.01657584,2425.4,2424.4,1.03118297]
[1769901433592,12.79866472,2425.3,2424.2,1.28806134]
[1769901433798,12.81524056,2425.2,2424.2,1.03126629]
[1769901434097,16.92136502,2425.6,2424.4,0.0011]
[1769901434625,16.92236502,2425.6,2424.4,0.0011]
[1769901436124,12.79966472,2425.6,2424.4,0.0011]
[1769901436305,1.03167367,2425.6,2424.4,14.93162169]
[1769901436627,1.03167367,2425.6,2424.4,16.03170365]
[1769901436801,0.001,2425.6,2424.5,13.00435691]
[1769901436995,0.001,2425.6,2424.5,14.10443887]
[1769901437196,0.001,2425.6,2424.6,1.03109791]
[1769901437399,0.001,2425.6,2424.7,1.92599284]
[1769901438897,0.01657584,2425.5,2424.5,1.03111776]
[1769901439129,0.01657584,2425.4,2424.5,1.03111776]
[1769901439403,1.03080031,2425.3,2424.5,1.03111776]
[1769901439602,1.03080031,2425.3,2424.5,1.84943042]
[1769901440505,1.03080031,2425.3,2424.5,0.81831266]
[1769901441605,16.93840497,2425.4,2424.4,0.0011]
[1769901442230,12.81524056,2425.3,2424.4,0.0011]
[1769901442443,12.81524056,2425.0,2424.1,0.0011]
[1769901442644,12.79866472,2425.0,2424.1,1.03237693]
[1769901442842,1.27986647,2424.9,2424.2,1.03125987]
[1769901443045,13.67924056,2425.2,2424.2,1.03125987]
[1769901443544,0.864,2425.2,2424.2,14.03562495]
[1769901444131,0.864,2425.2,2424.2,15.13570691]
[1769901444729,0.864,2425.2,2424.2,14.03562495]
[1769901444935,14.6935134,2425.2,2424.2,1.03126804]
[1769901445117,14.71008924,2425.2,2424.2,1.03126804]
[1769901445318,14.6935134,2425.2,2424.2,1.03126804]
[1769901446344,0.864,2425.2,2424.2,14.03562495]
[1769901446516,0.864,2425.2,2424.3,14.9821961]
[1769901446948,0.001,2424.8,2424.3,14.9821961]
[1769901447958,0.001,2424.8,2424.4,1.03118297]
[1769901449340,0.01757584,2425.6,2424.4,15.13618903]
[1769901449341,0.001,2425.6,2424.4,15.13618903]
[1769901449544,0.001,2425.6,2424.6,14.10500606]
[1769901449851,0.001,2425.6,2424.8,1.10064915]
[1769901450057,0.001,2425.6,2424.9,1.03097034]
[1769901451047,0.001,2425.6,2424.9,14.03532725]
[1769901451233,0.001,2425.6,2424.9,15.1359764]
[1769901451749,0.001,2425.6,2425.0,1.10064915]
[1769901451937,0.001,2425.6,2425.1,0.29956195]
[1769901452340,0.28497514,2426.1,2425.4,13.00435691]
[1769901452537,0.28497514,2426.1,2425.4,14.10500606]
[1769901452758,0.28497514,2426.1,2425.6,13.00435691]
[1769901454255,0.001,2426.5,2425.8,14.10602765]
[1769901454726,0.001,2426.5,2425.9,14.10602765]
[1769901454927,0.001,2426.5,2426.0,1.10167074]
[1769901456159,0.865,2427.2,2426.1,13.00435691]
[1769901456357,0.865,2427.2,2426.3,14.10602765]
[1769901456358,0.001,2427.2,2426.3,14.10602765]
[1769901456561,1.31303558,2427.6,2426.6,1.10167074]
[1769901456562,0.28318165,2427.6,2426.6,1.10167074]
[1769901456749,0.28318165,2427.6,2426.9,14.10602765]
[1769901456962,0.28318165,2427.6,2426.7,3.74486324]
[1769901456963,1.31301731,2427.6,2426.7,1.41060277]
[1769901457257,1.31301731,2427.6,2426.6,1.96567074]
[1769901457258,1.31301731,2427.6,2426.6,0.864]
[1769901458266,0.28318165,2427.6,2426.7,1.03020562]
[1769901458770,0.001,2427.4,2426.7,1.03020562]
[1769901458950,0.001,2427.4,2426.7,2.97827556]
[1769901459359,0.001,2427.4,2426.7,16.44389365]
[1769901460367,0.28318165,2427.6,2426.7,16.44389365]
[1769901462067,0.28318165,2427.6,2426.8,0.864]
[1769901462564,0.28318165,2427.6,2426.9,1.89412073]
[1769901462769,0.28318165,2427.6,2426.9,2.57021961]
[1769901462970,0.28318165,2427.6,2426.9,1.70621961]
[1769901463964,0.28318165,2427.6,2426.9,14.89652978]
[1769901464170,14.18436077,2428.4,2426.9,14.89652978]